{"text_format":"1","workbook":"xlsx","n_sheets":1,"sheets":["Form_44"],"not_rendered":{"charts":0,"images":2,"macros":1,"external_links":2,"defined_names":13,"comments":1,"pivot_tables":0},"unopened":[],"bounds":{"document_bytes":16777216,"sheet_cells":100000,"rows_first":2000,"rows_last":500,"rows_between":2000,"halvings":0,"cell_chars":16384,"cell_head_chars":4096},"cells_cut":0,"cells_raw":0,"read":"whole","date_system":"1900"}

{"sheet":"Form_44","index":0,"n_rows":37,"n_cols":29,"rows_kept":37,"cut":false,"hidden":false,"merged":[[7,13,10,13],[7,14,10,14],[7,15,10,15],[7,1,10,1],[35,1,35,17],[1,16,1,17],[2,0,2,17],[3,0,3,17],[1,0,1,14],[4,0,4,17],[36,0,37,1],[36,2,37,6],[36,11,37,14],[36,15,37,17],[5,0,5,17],[6,0,6,17],[30,2,30,17],[33,1,33,17],[34,1,34,17],[7,16,10,16],[7,17,10,17],[7,3,7,11],[28,0,28,15],[31,1,31,17],[7,0,10,0],[7,12,10,12]]}
[]
["jktLFkku ljdkj\nçkfof/kd f'k{kk e.My] jktLFkku] tks/kiqj \nijh{kk l= 2021&22 ¼ukWu&bath] okf\"kZd ;kstuk eq[; ijh{kk½",null,null,null,null,null,null,null,null,null,null,null,null,null,null,null,"ikfjJfed foi=&44",null,null,null,null,null,null,0,null,null,null,0,11]
["ijh{kk dsUnz @laLFkku dk uke ,oa iwjk irk--------------------------------------------------------------------------------------------------------------------------------------------------- ijh{kk dsUnz dksM----------------------------------------------------------------------------------------------",null,null,null,null,null,null,null,null,null,null,null,null,null,null,null,null,null,null,null,null,null,null,1,null,null,null,1,12]
["ijh{kk dsUnz@laLFkku ds cSad dk uke ------------------------------------------------------------------------  [kkrk la[;k ----------------------laLFkku dk isu uEcj---------------------------------- vkbZ,Q,llh dksM----------------------------------------",null,null,null,null,null,null,null,null,null,null,null,null,null,null,null,null,null,null,null,null,null,null,2,null,null,null,2,13]
[null,null,null,null,null,null,null,null,null,null,null,null,null,null,null,null,null,null,null,null,null,null,null,null,null,null,null,null,14]
["¼1½ dkWye dksM es ijh{kk dsUnz v/kh{kd gsrq 11] vfrfjDr ijh{kk dsUnzz  v/kh{kd gsrq 12] ijh{kk oh{kd gsrq 13] Eak=kyf;d gsrq 14 ,oa prqFkZ Js.kh deZpkjh gsrq 15 vafdr djsaA",null,null,null,null,null,null,null,null,null,null,null,null,null,null,null,null,null,null,null,null,null,null,null,null,null,null,null,15]
["¼2½ fnukad @ikjh okys dkWye esa mifLFkfr fnol @ ikjh ds fnu 1 vafdr djsa vuqifLFfr ij 0 vafdr djsaA dqy jkf'k okys dkWye  esa x.kuk Lor% gh gksxhA vr% bl dkWye esa dqN vafdr ugha djsA"]
["SN.","Officer/Employee Name in Capital Letters with Designation\n",null,"Exam Date",null,null,null,null,null,null,null,null,"EXTRA-BEFORE","EXTRA-AFTER","TOTAL SESSIONS","RATE","TOTAL AMOUNT","SIGNATURE"]
[null,null,null,"2022-04-13","2022-04-16","2022-04-18","2022-04-19","2022-04-20","2022-04-21","2022-04-22","2022-04-23","2022-04-25"]
[null,null,"STUDENT STRENGTH"]
[null,null,"CODE"]
[{"$f":"IF(B12=\"\",\"\",1)","v":""},null,null,0,null,null,null,null,null,null,null,0,null,null,{"$f":"SUM(D12:N12)","v":0},null,{"$f":"IF(C12=\"\",0,IF(B12=\"\",0,IF(C12=11,O12*100,IF(C12=12,O12*75,IF(C12=13,ROUND(O12*70,0),IF(C12=14,O12*40,IF(C12=15,O12*30)))))))","v":0}]
[{"$f":"IF(B13=\"\",\"\",A12+1)","v":""},null,null,null,null,null,null,null,null,null,null,null,null,null,0,null,0]
[{"$f":"IF(B14=\"\",\"\",#REF!+1)","v":""},null,null,null,null,null,null,null,null,null,null,null,null,null,{"$f":"SUM(D14:N14)","v":0},null,{"$f":"IF(C14=\"\",0,IF(B14=\"\",0,IF(C14=11,O14*100,IF(C14=12,O14*75,IF(C14=13,ROUND(O14*70,0),IF(C14=14,O14*40,IF(C14=15,O14*30)))))))","v":0}]
[{"$f":"IF(B15=\"\",\"\",#REF!+1)","v":""},null,null,null,null,null,null,null,null,null,null,null,null,null,{"$f":"SUM(D15:N15)","v":0},null,{"$f":"IF(C15=\"\",0,IF(B15=\"\",0,IF(C15=11,O15*100,IF(C15=12,O15*75,IF(C15=13,ROUND(O15*70,0),IF(C15=14,O15*40,IF(C15=15,O15*30)))))))","v":0}]
[{"$f":"IF(B16=\"\",\"\",#REF!+1)","v":""},null,null,null,null,null,null,null,null,null,null,null,null,null,{"$f":"SUM(D16:N16)","v":0},null,{"$f":"IF(C16=\"\",0,IF(B16=\"\",0,IF(C16=11,O16*100,IF(C16=12,O16*75,IF(C16=13,ROUND(O16*70,0),IF(C16=14,O16*40,IF(C16=15,O16*30)))))))","v":0}]
[{"$f":"IF(B17=\"\",\"\",#REF!+1)","v":""},null,null,null,null,null,null,null,null,null,null,null,null,null,{"$f":"SUM(D17:N17)","v":0},null,{"$f":"IF(C17=\"\",0,IF(B17=\"\",0,IF(C17=11,O17*100,IF(C17=12,O17*75,IF(C17=13,ROUND(O17*70,0),IF(C17=14,O17*40,IF(C17=15,O17*30)))))))","v":0}]
[{"$f":"IF(B18=\"\",\"\",#REF!+1)","v":""},null,null,null,null,null,null,null,null,null,null,null,null,null,{"$f":"SUM(D18:N18)","v":0},null,0]
[{"$f":"IF(B19=\"\",\"\",A18+1)","v":""},null,null,null,null,null,null,null,null,null,null,null,null,null,{"$f":"SUM(D19:N19)","v":0},null,0]
["",null,null,null,null,null,null,null,null,null,null,null,null,null,0,null,0]
["",null,null,null,null,null,null,null,null,null,null,null,null,null,0,null,0]
[null,null,null,null,null,null,null,null,null,null,null,null,null,null,0,null,0]
[null,null,null,null,null,null,null,null,null,null,null,null,null,null,0,null,0]
[null,null,null,null,null,null,null,null,null,null,null,null,null,null,0,null,0]
[null,null,null,null,null,null,null,null,null,null,null,null,null,null,0,null,0]
[null,null,null,null,null,null,null,null,null,null,null,null,null,null,0,null,0]
[null,null,null,null,null,null,null,null,null,null,null,null,null,null,0,null,0]
[null,null,null,null,null,null,null,null,null,null,null,null,null,null,0,null,0]
["Grand Total",null,null,null,null,null,null,null,null,null,null,null,null,null,null,null,{"$f":"SUM(Q12:Q28)","v":0}]
[null,"dqy :Ik;s vadks esa",{"$f":"+Q29","v":0}]
[null,"dqy :Ik;s 'kCnksa esa ",{"$f":"IF(Q29>0, SUBSTITUTE(spellnumber(Q29),\"Dollars and No Cents\",\"only\"),\"Rupees ….Nil ….\")","v":"Rupees ….Nil …."}]
[null,"No.                                         e.My dk;kZy; ç;ksxkFkZ\nfnukad                                          çekf.kr ,oa ikfjr \n\n"]
["izek.k i=%&"]
[1,"izekf.kr fd;k tkrk gS fd izkfof/kd f'k{kk e.My] jktFkku] tks/kiqj ijh{kk ckcr~ le;&le; ij izlkfjr funsZ'k ;Fkk ijh{kk v/kh{kd funsZ'k iqfLrwdk dh ikyuk djrs gq, fu/kkZfjr ekin.M vuqlkj dkfeZdksa dh lsok,as izkIr djrs gq, ikfjJfed nkok funsZ'kkuqlkj vko';d foi=ksa dks layXu djrs gq, izLrqr fd;k x;k gSA"]
[2,"Hkqxrku gsrq ;g fcy izFke ckj izLrqr x;k gSA"]
[3,"Hkqxrku forj.k I'pkr izkfIr jlhn e.My dks fHktok nh tk;sxhA"]
["izHkkjh vf/kdkjh",null,"izHkkjh",null,null,null,null,null,null,null,null,null,null,null,null,"iz/kkukpk;Z gLrk{kj e; lhy"]